fUSD/lending_fUSD_20240214
["ID","MTS","AMOUNT","RATE_DAILY","PERIOD"]
[314022799,1707924663952,-500.0,0.00038356,7]
[314022800,1707924663961,-500.0,0.00038356,7]
[314022801,1707924663970,-500.0,0.00038356,7]
[314022802,1707924663980,-523.95535789,0.00038356,10]
[314022803,1707924663989,-500.0,0.00038356,7]
[314022804,1707924663999,-500.0,0.00038356,7]
[314022805,1707924664008,-500.0,0.00038356,7]
[314022806,1707924664017,-500.0,0.00038356,7]
[314022807,1707924664027,-500.0,0.00038356,7]
[314022808,1707924664036,-1166.25,0.00038356,7]
[314022809,1707924664045,-500.0,0.00038356,7]
[314022810,1707924664055,-500.0,0.00038356,7]
[314022811,1707924664064,-807.84,0.00038356,7]
[314022812,1707924664073,-500.0,0.00038356,7]
[314022813,1707924664082,-500.0,0.00038356,7]
[314022814,1707924664092,-507.27,0.00038356,7]
[314022815,1707924664101,-172.66,0.00038356,7]
[314022816,1707924664110,-1494.27,0.00038356,7]
[314022817,1707924664120,-523.31,0.00038356,7]
[314022818,1707924664130,-500.0,0.00038356,7]
[314022819,1707924664139,-1303.95,0.00038356,7]
[314022820,1707924664151,-987.63,0.00038356,7]
[314022821,1707924664161,-513.33,0.00038356,7]
[314022822,1707924664171,-500.0,0.00038356,7]
[314022823,1707924664182,-549.12,0.00038356,7]
[314022824,1707924664192,-208.0,0.00038356,7]
[314022825,1707924664202,-500.0,0.00038356,7]
[314022826,1707924664212,-2526.45,0.00038356,7]
[314022827,1707924664222,-500.0,0.00038356,7]
[314022828,1707924664232,-500.0,0.00038356,7]
[314022829,1707924664242,-500.0,0.00038356,7]
[314022830,1707924664252,-500.0,0.00038356,7]
[314022831,1707924664262,-500.0,0.00038356,7]
[314022832,1707924664272,-468.32,0.00038356,7]
[314022833,1707924664282,-500.0,0.00038356,7]
[314022834,1707924664294,-914.8,0.00038356,7]
[314022835,1707924664303,-500.0,0.00038356,7]
[314022836,1707924664313,-500.0,0.00038356,7]
[314022837,1707924664327,-527.73,0.00038356,7]
[314022838,1707924664337,-3116.56,0.00038356,7]
[314022839,1707924664348,-500.0,0.00038356,7]
[314022840,1707924664357,-622.04,0.00038356,7]
[314022841,1707924664367,-500.0,0.00038356,7]
[314022842,1707924664377,-500.0,0.00038356,7]
[314022843,1707924664386,-5810.35,0.00038356,7]
[314022844,1707924664398,-500.0,0.00038356,7]
[314022845,1707924664407,-500.0,0.00038356,7]
[314022846,1707924664417,-797.5,0.00038356,7]
[314022847,1707924664427,-4884.79,0.00038356,7]
[314022848,1707924664437,-826.72,0.00038356,7]
[314022849,1707924664447,-500.0,0.00038356,7]
[314022850,1707924664456,-500.0,0.00038356,7]
[314022851,1707924664466,-500.0,0.00038356,2]
[314022852,1707924664476,-1000.0,0.00038356,30]
[314022853,1707924664485,-1039.26057091,0.00038356,30]
[314022854,1707924664495,-10667.26,0.00038356,7]
[314022855,1707924664505,-526.7,0.00038356,7]
[314022856,1707924664515,-500.0,0.00038356,7]
[314022858,1707924664525,-610.33,0.00038356,7]
[314022859,1707924664535,-500.0,0.00038356,7]
[314022860,1707924664544,-500.0,0.00038356,7]
[314022861,1707924664554,-500.0,0.00038356,7]
[314022862,1707924664564,-2351.55,0.00038356,7]
[314022863,1707924664574,-500.0,0.00038356,7]
[314022864,1707924664584,-238.15,0.00038356,7]
[314022865,1707924664595,-661.92,0.00038356,7]
[314022866,1707924664606,-500.0,0.00038356,7]
[314022867,1707924664615,-1035.57,0.00038356,7]
[314022868,1707924664626,-500.0,0.00038356,7]
[314022869,1707924664636,-500.0,0.00038356,7]
[314022870,1707924664645,-913.46,0.00038356,7]
[314022871,1707924664655,-500.0,0.00038356,7]
[314022872,1707924664665,-500.0,0.00038356,7]
[314022873,1707924664675,-1960.44,0.00038356,7]
[314022874,1707924664684,-500.0,0.00038356,7]
[314022875,1707924664693,-651.93,0.00038356,7]
[314022876,1707924664703,-649.79,0.00038356,7]
[314022877,1707924664714,-500.0,0.00038356,7]
[314022878,1707924664725,-315.92,0.00038356,7]
[314022879,1707924664736,-500.0,0.00038356,7]
[314022880,1707924664747,-500.0,0.00038356,7]
[314022881,1707924664758,-500.0,0.00038356,7]
[314022882,1707924664769,-500.0,0.00038356,7]
[314022883,1707924664779,-500.0,0.00038356,7]
[314022884,1707924664789,-1646.81,0.00038356,7]
[314022885,1707924664799,-5276.75,0.00038356,7]
[314022886,1707924664809,-5197.73,0.00038356,7]
[314022887,1707924664819,-500.0,0.00038356,7]
[314022888,1707924664831,-1849.85,0.00038356,7]
[314022889,1707924664842,-573.86,0.00038356,7]
[314022890,1707924664853,-843.66,0.00038356,7]
[314022891,1707924664863,-546.62,0.00038356,7]
[314022892,1707924664873,-500.0,0.00038356,7]
[314022893,1707924664883,-500.0,0.00038356,7]
[314022894,1707924664892,-500.0,0.00038356,7]
[314022895,1707924664904,-500.0,0.00038356,7]
[314022896,1707924664913,-1901.63,0.00038356,7]
[314022897,1707924664923,-500.0,0.00038356,7]
[314022898,1707924664933,-349.17,0.00038356,7]
[314022899,1707924664945,-500.0,0.00038356,7]
[314022900,1707924664956,-500.0,0.00038356,7]
[314022901,1707924664968,-2949.64,0.00038356,7]
[314022902,1707924664979,-500.0,0.00038356,7]
[314022903,1707924664990,-500.0,0.00038356,7]
[314022904,1707924665001,-500.0,0.00038356,7]
[314022905,1707924665238,-500.0,0.00038356,7]
[314022906,1707924665249,-165.92,0.00038356,7]
[314022907,1707924665260,-500.0,0.00038356,7]
[314022908,1707924665271,-516.23,0.00038356,7]
[314022909,1707924665281,-362.16,0.00038356,7]
[314022910,1707924665292,-704.37,0.00038356,7]
[314022911,1707924665306,-926.22,0.00038356,7]
[314022912,1707924665316,-152.14,0.00038356,2]
[314022913,1707924665326,-185.99,0.00038389,2]
[314022914,1707924665336,-1244.0,0.000384,2]
[314022915,1707924665347,-152.94099915,0.00038478,2]
[314022916,1707924665357,-237.0,0.00038508,2]
[314022917,1707924665366,-857.0,0.00038508,2]
[314022918,1707924665376,-1004.0,0.00038508,2]
[314022919,1707924665385,-429.0,0.00038508,2]
[314022920,1707924665398,-150.0,0.00038508,2]
[314022921,1707924665408,-1138.0,0.00038508,2]
[314022922,1707924665417,-321.0,0.00038508,2]
[314022923,1707924665426,-343.0,0.00038508,2]
[314022924,1707924665436,-150.463,0.00038508,2]
[314022925,1707924665446,-8131.0,0.00038508,2]
[314022926,1707924665456,-19835.0,0.00038508,2]
[314022927,1707924665466,-2925.0,0.00038508,2]
[314022928,1707924665477,-1368.0,0.00038508,2]
[314022929,1707924665486,-4208.0,0.00038508,2]
[314022930,1707924665496,-2288.0,0.00038508,2]
[314022931,1707924665506,-2833.0,0.00038508,2]
[314022932,1707924665516,-281.624,0.00038508,2]
[314022933,1707924665526,-1037.0,0.00038508,2]
[314022934,1707924665536,-841.0,0.00038508,2]
[314022935,1707924665547,-952.0,0.00038508,2]
[314022936,1707924665556,-1864.0,0.00038508,2]
[314022937,1707924665566,-168.0,0.00038524,11]
[314022938,1707924665576,-3342.037108,0.000386,7]
[314022939,1707924665586,-150.0,0.00038629,2]
[314022940,1707924665596,-150.0,0.00038629,2]
[314022941,1707924665606,-642.08947906,0.0003863,7]
[314022942,1707924665617,-516.86,0.0003863,7]
[314022943,1707924665627,-500.0,0.0003863,7]
[314022944,1707924665636,-643.21257532,0.0003863,7]
[314022945,1707924665646,-649.8,0.0003863,7]
[314022946,1707924665656,-500.0,0.0003863,2]
[314022947,1707924665666,-500.0,0.0003863,7]
[314022948,1707924665677,-500.29,0.0003863,2]
[314022949,1707924665687,-431.38500688,0.0003863,7]
[314022950,1707924665697,-500.0,0.0003863,7]
[314022951,1707924665707,-500.0,0.0003863,7]
[314022952,1707924665717,-500.0,0.0003863,7]
[314022953,1707924665727,-500.0,0.0003863,7]
[314022954,1707924665737,-500.0,0.0003863,7]
[314022955,1707924665747,-500.0,0.0003863,7]
[314022956,1707924665757,-500.0,0.0003863,7]
[314022957,1707924665766,-1166.25,0.0003863,7]
[314022958,1707924665776,-500.0,0.0003863,7]
[314022959,1707924665786,-500.0,0.0003863,7]
[314022960,1707924665796,-807.84,0.0003863,7]
[314022961,1707924665806,-500.0,0.0003863,7]
[314022962,1707924665815,-500.0,0.0003863,7]
[314022963,1707924665824,-507.27,0.0003863,7]
[314022964,1707924665833,-172.66,0.0003863,7]
[314022965,1707924665842,-1494.27,0.0003863,7]
[314022966,1707924665852,-523.31,0.0003863,7]
[314022967,1707924665861,-500.0,0.0003863,7]
[314022968,1707924665870,-1303.95,0.0003863,7]
[314022969,1707924665880,-987.63,0.0003863,7]
[314022970,1707924665889,-500.0,0.0003863,7]
[314022971,1707924665900,-549.12,0.0003863,7]
[314022972,1707924665910,-500.0,0.0003863,7]
[314022973,1707924665920,-2526.45,0.0003863,7]
[314022974,1707924665930,-287.80861106,0.0003863,7]
[314022975,1707924665940,-603.23,0.0003863,7]
[314022976,1707924665951,-500.0,0.0003863,7]
[314022977,1707924665962,-500.0,0.0003863,7]
[314022978,1707924665972,-639.21312122,0.0003863,7]
[314022979,1707924665982,-500.0,0.0003863,7]
[314022980,1707924665992,-914.8,0.0003863,7]
[314022981,1707924666002,-257.3,0.0003863,7]
[314022982,1707924666012,-500.0,0.0003863,7]
[314022983,1707924666022,-527.73,0.0003863,7]
[314022984,1707924666032,-3116.56,0.0003863,7]
[314022985,1707924666042,-500.0,0.0003863,7]
[314022986,1707924666052,-622.04,0.0003863,7]
[314022987,1707924666063,-500.0,0.0003863,7]
[314022988,1707924666072,-500.0,0.0003863,7]
[314022989,1707924666083,-5810.35,0.0003863,7]
[314022990,1707924666093,-500.0,0.0003863,7]
[314022991,1707924666104,-500.0,0.0003863,7]
[314022992,1707924666115,-797.5,0.0003863,7]
[314022993,1707924666125,-4884.79,0.0003863,7]
[314022994,1707924666136,-826.72,0.0003863,7]
[314022995,1707924666147,-500.0,0.0003863,7]
[314022996,1707924666157,-500.0,0.0003863,7]
[314022997,1707924666167,-500.0,0.0003863,2]
[314022998,1707924666178,-10667.26,0.0003863,7]
[314022999,1707924666188,-526.7,0.0003863,7]
[314023000,1707924666198,-500.0,0.0003863,7]
[314023001,1707924666208,-500.0,0.0003863,7]
[314023002,1707924666218,-633.28,0.0003863,7]
[314023003,1707924666227,-500.0,0.0003863,7]
[314023004,1707924666237,-2351.55,0.0003863,7]
[314023005,1707924666248,-500.0,0.0003863,7]
[314023006,1707924666258,-661.92,0.0003863,7]
[314023007,1707924666268,-500.0,0.0003863,7]
[314023008,1707924666278,-1035.57,0.0003863,7]
[314023009,1707924666288,-500.0,0.0003863,7]
[314023010,1707924666299,-500.0,0.0003863,7]
[314023011,1707924666310,-913.46,0.0003863,7]
[314023012,1707924666322,-500.0,0.0003863,7]
[314023013,1707924666333,-500.0,0.0003863,7]
[314023014,1707924666343,-1960.44,0.0003863,7]
[314023015,1707924666353,-500.0,0.0003863,7]
[314023016,1707924666364,-651.93,0.0003863,7]
[314023017,1707924666375,-649.79,0.0003863,7]
[314023018,1707924666385,-500.0,0.0003863,7]
[314023019,1707924666396,-500.0,0.0003863,7]
[314023020,1707924666406,-500.0,0.0003863,7]
[314023021,1707924666416,-500.0,0.0003863,7]
[314023022,1707924666426,-500.0,0.0003863,7]
[314023023,1707924666436,-482.22,0.0003863,7]
[314023024,1707924666446,-1646.81,0.0003863,7]
[314023025,1707924666456,-5276.75,0.0003863,7]
[314023026,1707924666467,-5197.73,0.0003863,7]
[314023027,1707924666477,-500.0,0.0003863,7]
[314023028,1707924666487,-1849.85,0.0003863,7]
[314023029,1707924666498,-573.86,0.0003863,7]
[314023030,1707924666508,-843.66,0.0003863,7]
[314023031,1707924666518,-546.62,0.0003863,7]
[314023032,1707924666528,-500.0,0.0003863,7]
[314023033,1707924666538,-500.0,0.0003863,7]
[314023034,1707924666549,-500.0,0.0003863,7]
[314023035,1707924666559,-500.0,0.0003863,7]
[314023036,1707924666569,-1901.63,0.0003863,7]
[314023037,1707924666579,-500.0,0.0003863,7]
[314023038,1707924666590,-500.0,0.0003863,7]
[314023039,1707924666600,-500.0,0.0003863,7]
[314023040,1707924666611,-2949.64,0.0003863,7]
[314023041,1707924666621,-227.66,0.0003863,7]
[314023042,1707924666631,-500.0,0.0003863,7]
[314023043,1707924666642,-500.0,0.0003863,7]
[314023044,1707924666655,-500.0,0.0003863,7]
[314023045,1707924666665,-500.0,0.0003863,7]
[314023046,1707924666675,-516.23,0.0003863,7]
[314023047,1707924666685,-704.37,0.0003863,7]
[314023048,1707924666696,-926.22,0.0003863,7]
[314023049,1707924666706,-200.0,0.00038723,20]
[314023050,1707924666716,-151.74353677,0.0003874,20]
[314023051,1707924666726,-177.3,0.0003874,2]
[314023052,1707924666736,-30007.71325447,0.000388,4]
[314023053,1707924666745,-275.84,0.000388,7]
[314023054,1707924666755,-16773.29317981,0.000388,2]
[314023055,1707924666765,-17500.0,0.000389,7]
[314023056,1707924666774,-516.86,0.00038904,7]
[314023057,1707924666784,-570.81836878,0.00038904,7]
[314023058,1707924666794,-649.8,0.00038904,7]
[314023059,1707924666804,-500.0,0.00038904,2]
[314023060,1707924666813,-500.0,0.00038904,7]
[314023061,1707924666823,-500.29,0.00038904,2]
[314023062,1707924666832,-500.0,0.00038904,7]
[314023063,1707924666842,-500.0,0.00038904,7]
[314023064,1707924666851,-500.0,0.00038904,7]
[314023065,1707924666861,-500.0,0.00038904,7]
[314023066,1707924666871,-500.0,0.00038904,7]
[314023067,1707924666881,-500.0,0.00038904,7]
[314023068,1707924666891,-500.0,0.00038904,7]
[314023069,1707924666904,-1166.25,0.00038904,7]
[314023070,1707924666914,-500.0,0.00038904,7]
[314023071,1707924666923,-307.45224386,0.00038904,7]
[314023072,1707924666933,-807.84,0.00038904,7]
[314023073,1707924666943,-500.0,0.00038904,7]
[314023074,1707924666953,-500.0,0.00038904,7]
[314023075,1707924666962,-507.27,0.00038904,7]
[314023076,1707924666972,-172.66,0.00038904,7]
[314023077,1707924666982,-1494.27,0.00038904,7]
[314023078,1707924666991,-523.31,0.00038904,7]
[314023079,1707924667001,-382.87820764,0.00038904,7]
[314023080,1707924667011,-1303.95,0.00038904,7]
[314023081,1707924667021,-987.63,0.00038904,7]
[314023082,1707924667030,-500.0,0.00038904,7]
[314023083,1707924667040,-549.12,0.00038904,7]
[314023084,1707924667050,-500.0,0.00038904,7]
[314023085,1707924667060,-2526.45,0.00038904,7]
[314023086,1707924667070,-180.18,0.00038904,7]
[314023087,1707924667080,-500.0,0.00038904,7]
[314023088,1707924667090,-500.0,0.00038904,7]
[314023089,1707924667100,-914.8,0.00038904,7]
[314023090,1707924667109,-500.0,0.00038904,7]
[314023091,1707924667120,-527.73,0.00038904,7]
[314023092,1707924667130,-3116.56,0.00038904,7]
[314023093,1707924667140,-500.0,0.00038904,7]
[314023094,1707924667152,-500.0,0.00038904,7]
[314023095,1707924667162,-500.0,0.00038904,7]
[314023096,1707924667172,-5810.35,0.00038904,7]
[314023097,1707924667182,-622.04,0.00038904,7]
[314023098,1707924667193,-255.94,0.00038904,7]
[314023099,1707924667202,-500.0,0.00038904,7]
[314023100,1707924667213,-797.5,0.00038904,7]
[314023101,1707924667223,-4884.79,0.00038904,7]
[314023102,1707924667232,-826.72,0.00038904,7]
[314023103,1707924667242,-500.0,0.00038904,7]
[314023104,1707924667252,-500.0,0.00038904,7]
[314023105,1707924667263,-500.0,0.00038904,2]
[314023106,1707924667273,-10667.26,0.00038904,7]
[314023107,1707924667283,-526.7,0.00038904,7]
[314023108,1707924667294,-500.0,0.00038904,7]
[314023109,1707924667305,-198.99,0.00038904,7]
[314023110,1707924667315,-500.0,0.00038904,7]
[314023111,1707924667327,-2351.55,0.00038904,7]
[314023112,1707924667337,-500.0,0.00038904,7]
[314023113,1707924667347,-661.92,0.00038904,7]
[314023114,1707924667357,-500.0,0.00038904,7]
[314023115,1707924667367,-1035.57,0.00038904,7]
[314023116,1707924667377,-636.94,0.00038904,7]
[314023117,1707924667388,-500.0,0.00038904,7]
[314023118,1707924667400,-913.46,0.00038904,7]
[314023119,1707924667411,-425.6,0.00038904,7]
[314023120,1707924667421,-500.0,0.00038904,7]
[314023121,1707924667431,-1960.44,0.00038904,7]
[314023122,1707924667442,-500.0,0.00038904,7]
[314023123,1707924667452,-651.93,0.00038904,7]
[314023124,1707924667462,-649.79,0.00038904,7]
[314023125,1707924667473,-500.0,0.00038904,7]
[314023126,1707924667483,-500.0,0.00038904,7]
[314023127,1707924667495,-500.0,0.00038904,7]
[314023128,1707924667505,-500.0,0.00038904,7]
[314023129,1707924667515,-500.0,0.00038904,7]
[314023130,1707924667526,-1646.81,0.00038904,7]
[314023131,1707924667536,-5276.75,0.00038904,7]
[314023132,1707924667547,-5197.73,0.00038904,7]
[314023133,1707924667557,-500.0,0.00038904,7]
[314023134,1707924667568,-1849.85,0.00038904,7]
[314023135,1707924667578,-573.86,0.00038904,7]
[314023136,1707924667589,-843.66,0.00038904,7]
[314023137,1707924667600,-546.62,0.00038904,7]
[314023138,1707924667610,-500.0,0.00038904,7]
[314023139,1707924667620,-500.0,0.00038904,7]
[314023140,1707924667630,-500.0,0.00038904,7]
[314023141,1707924667641,-500.0,0.00038904,7]
[314023142,1707924667704,-1901.63,0.00038904,7]
[314023143,1707924667715,-500.0,0.00038904,7]
[314023144,1707924667725,-500.0,0.00038904,7]
[314023145,1707924667735,-636.49,0.00038904,7]
[314023146,1707924667744,-2949.64,0.00038904,7]
[314023147,1707924667754,-466.96,0.00038904,7]
[314023148,1707924667765,-500.0,0.00038904,7]
[314023149,1707924667775,-500.0,0.00038904,7]
[314023150,1707924667784,-263.92,0.00038904,7]
[314023151,1707924667794,-516.23,0.00038904,7]
[314023152,1707924667803,-704.37,0.00038904,7]
[314023153,1707924667814,-926.22,0.00038904,7]
[314023154,1707924667823,-404.95078682,0.0003898,2]
[314023155,1707924667833,-100000.0,0.00039,19]
[314023156,1707924667842,-1941.46766429,0.00039,2]
[314023157,1707924667853,-1233.45224063,0.00039,4]
[314023158,1707924667864,-155.0,0.00039,5]
[314023159,1707924667874,-10000.0,0.00039,2]
[314023160,1707924667882,-412.44,0.00039,7]
[314023161,1707924667892,-331.22,0.00039,7]
[314023162,1707924667905,-5137.0,0.00039,6]
[314023163,1707924667914,-358.58,0.0003917,2]
[314023164,1707924667923,-166.12520497,0.00039178,4]
[314023165,1707924667933,-516.86,0.00039178,7]
[314023166,1707924667943,-649.8,0.00039178,7]
[314023167,1707924667952,-500.0,0.00039178,2]
[314023168,1707924667961,-500.0,0.00039178,7]
[314023169,1707924667971,-500.29,0.00039178,2]
[314023170,1707924667980,-500.0,0.00039178,7]
[314023171,1707924667990,-500.0,0.00039178,7]
[314023172,1707924667999,-500.0,0.00039178,7]
[314023173,1707924668009,-500.0,0.00039178,7]
[314023174,1707924668019,-500.0,0.00039178,7]
[314023175,1707924668028,-500.0,0.00039178,7]
[314023176,1707924668037,-225.87841647,0.00039178,7]
[314023177,1707924668047,-1166.25,0.00039178,7]
[314023178,1707924668057,-500.0,0.00039178,7]
[314023179,1707924668066,-807.84,0.00039178,7]
[314023180,1707924668075,-500.0,0.00039178,7]
[314023181,1707924668084,-500.0,0.00039178,7]
[314023182,1707924668094,-507.27,0.00039178,7]
[314023183,1707924668103,-172.66,0.00039178,7]
[314023184,1707924668112,-1494.27,0.00039178,7]
[314023185,1707924668122,-523.31,0.00039178,7]
[314023186,1707924668131,-1303.95,0.00039178,7]
[314023187,1707924668141,-987.63,0.00039178,7]
[314023188,1707924668152,-500.0,0.00039178,7]
[314023189,1707924668163,-549.12,0.00039178,7]
[314023190,1707924668173,-500.0,0.00039178,7]
[314023191,1707924668182,-2526.45,0.00039178,7]
[314023192,1707924668192,-500.0,0.00039178,7]
[314023193,1707924668202,-500.0,0.00039178,7]
[314023194,1707924668211,-914.8,0.00039178,7]
[314023195,1707924668221,-500.0,0.00039178,7]
[314023196,1707924668230,-527.73,0.00039178,7]
[314023197,1707924668240,-3116.56,0.00039178,7]
[314023198,1707924668250,-182.24,0.00039178,7]
[314023199,1707924668260,-161.42,0.00039178,7]
[314023200,1707924668270,-341.93,0.00039178,7]
[314023201,1707924668280,-5810.35,0.00039178,7]
[314023202,1707924668290,-622.04,0.00039178,7]
[314023203,1707924668301,-463.65,0.00039178,7]
[314023204,1707924668310,-797.5,0.00039178,7]
[314023205,1707924668321,-4884.79,0.00039178,7]
[314023206,1707924668331,-826.72,0.00039178,7]
[314023207,1707924668341,-500.0,0.00039178,7]
[314023208,1707924668352,-500.0,0.00039178,7]
[314023209,1707924668362,-500.0,0.00039178,2]
[314023210,1707924668371,-10667.26,0.00039178,7]
[314023211,1707924668381,-526.7,0.00039178,7]
[314023212,1707924668391,-500.0,0.00039178,7]
[314023213,1707924668403,-514.41,0.00039178,7]
[314023214,1707924668413,-2351.55,0.00039178,7]
[314023215,1707924668422,-595.11338699,0.00039178,7]
[314023216,1707924668432,-661.92,0.00039178,7]
[314023217,1707924668441,-500.0,0.00039178,7]
[314023218,1707924668451,-1035.57,0.00039178,7]
[314023219,1707924668460,-500.0,0.00039178,7]
[314023220,1707924668470,-913.46,0.00039178,7]
[314023221,1707924668479,-500.0,0.00039178,7]
[314023222,1707924668489,-1960.44,0.00039178,7]
[314023223,1707924668499,-500.0,0.00039178,7]
[314023224,1707924668509,-651.93,0.00039178,7]
[314023225,1707924668519,-649.79,0.00039178,7]
[314023226,1707924668530,-500.0,0.00039178,7]
[314023227,1707924668540,-500.0,0.00039178,7]
[314023228,1707924668549,-500.0,0.00039178,7]
[314023229,1707924668559,-500.0,0.00039178,7]
[314023230,1707924668569,-500.0,0.00039178,7]
[314023231,1707924668579,-1646.81,0.00039178,7]
[314023232,1707924668589,-5276.75,0.00039178,7]
[314023233,1707924668599,-5197.73,0.00039178,7]
[314023234,1707924668608,-500.0,0.00039178,7]
[314023235,1707924668619,-1849.85,0.00039178,7]
[314023236,1707924668629,-573.86,0.00039178,7]
[314023237,1707924668638,-843.66,0.00039178,7]
[314023238,1707924668648,-546.62,0.00039178,7]
[314023239,1707924668658,-500.0,0.00039178,7]
[314023240,1707924668668,-500.0,0.00039178,7]
[314023241,1707924668678,-500.0,0.00039178,7]
[314023242,1707924668688,-500.0,0.00039178,7]
[314023243,1707924668698,-1901.63,0.00039178,7]
[314023244,1707924668708,-500.0,0.00039178,7]
[314023245,1707924668718,-500.0,0.00039178,7]
[314023246,1707924668728,-2949.64,0.00039178,7]
[314023247,1707924668738,-500.0,0.00039178,7]
[314023248,1707924668747,-500.0,0.00039178,7]
[314023249,1707924668756,-516.23,0.00039178,7]
[314023250,1707924668766,-704.37,0.00039178,7]
[314023251,1707924668775,-926.22,0.00039178,7]
[314023252,1707924668785,-550.0,0.000392,10]
[314023253,1707924668794,-1083.34951992,0.000392,5]
[314023254,1707924668803,-3000.0,0.000392,38]
[314023255,1707924668812,-3000.0,0.0003921,38]
[314023256,1707924668821,-5477.23002,0.0003922,38]
[314023257,1707924668831,-152.94099915,0.00039222,3]
[314023258,1707924668840,-2651.0,0.00039235,3]
[314023259,1707924668850,-1000.0,0.0003926,2]
[314023260,1707924668860,-177.3,0.00039288,2]
[314023261,1707924668869,-1241.65133893,0.00039436,2]
[314023262,1707924668879,-2000.0,0.00039439,2]
[314023263,1707924668888,-2000.0,0.00039439,2]
[314023264,1707924668898,-516.86,0.00039452,7]
[314023265,1707924668908,-649.8,0.00039452,7]
[314023266,1707924668917,-500.0,0.00039452,2]
[314023267,1707924668926,-500.0,0.00039452,7]
[314023268,1707924668936,-500.29,0.00039452,2]
[314023269,1707924668945,-200.29,0.00039452,7]
[314023270,1707924668954,-500.0,0.00039452,7]
[314023271,1707924668963,-500.0,0.00039452,7]
[314023272,1707924668972,-500.0,0.00039452,7]
[314023273,1707924668981,-500.0,0.00039452,7]
[314023274,1707924668990,-500.0,0.00039452,7]
[314023275,1707924668999,-1166.25,0.00039452,7]
[314023276,1707924669008,-500.0,0.00039452,7]
[314023277,1707924669017,-807.84,0.00039452,7]
[314023278,1707924669026,-500.0,0.00039452,7]
[314023279,1707924669035,-323.77158265,0.00039452,7]
[314023280,1707924669045,-507.27,0.00039452,7]
[314023281,1707924669054,-172.66,0.00039452,7]
[314023282,1707924669063,-1494.27,0.00039452,7]
[314023283,1707924669072,-523.31,0.00039452,7]
[314023284,1707924669081,-1303.95,0.00039452,7]
[314023285,1707924669091,-987.63,0.00039452,7]
[314023286,1707924669101,-500.0,0.00039452,7]
[314023287,1707924669111,-549.12,0.00039452,7]
[314023288,1707924669121,-500.0,0.00039452,7]
[314023289,1707924669130,-2526.45,0.00039452,7]
[314023290,1707924669140,-500.0,0.00039452,7]
[314023291,1707924669151,-389.09,0.00039452,7]
[314023292,1707924669161,-914.8,0.00039452,7]
[314023293,1707924669170,-500.0,0.00039452,7]
[314023294,1707924669180,-527.73,0.00039452,7]
[314023295,1707924669190,-3116.56,0.00039452,7]
[314023296,1707924669199,-5810.35,0.00039452,7]
[314023297,1707924669209,-622.04,0.00039452,7]
[314023298,1707924669218,-797.5,0.00039452,7]
[314023299,1707924669227,-4884.79,0.00039452,7]